[Event "Early-Titled-Tuesday-Blitz-September-05-2023"]
[Site "Chess.com"]
[Date "2023.09.05"]
[Round "9"]
[White "PavelChernomordik"]
[Black "amanjazu"]
[Result "0-1"]
[WhiteElo "2474"]
[BlackElo "2372"]
[TimeControl "180+1"]
[EndTime "9:44:07 PDT"]
[Termination "amanjazu won on time"]

1. e4 {[%clk 0:03:00.9]} 1... Nf6 {[%clk 0:02:54.4]} 2. Nc3 {[%clk 0:03:00.1]}
2... e5 {[%clk 0:02:48.9]} 3. Nf3 {[%clk 0:02:59.4]} 3... Nc6 {[%clk 0:02:48.6]}
4. d4 {[%clk 0:02:58.8]} 4... exd4 {[%clk 0:02:45.5]} 5. Nxd4 {[%clk 0:02:58.4]}
5... Bb4 {[%clk 0:02:45.4]} 6. Nxc6 {[%clk 0:02:57.7]} 6... bxc6 {[%clk
0:02:45.4]} 7. Bd3 {[%clk 0:02:57.2]} 7... d5 {[%clk 0:02:40.4]} 8. exd5 {[%clk
0:02:55.3]} 8... cxd5 {[%clk 0:02:33.5]} 9. O-O {[%clk 0:02:50.1]} 9... O-O
{[%clk 0:02:33]} 10. h3 {[%clk 0:02:49.5]} 10... h6 {[%clk 0:02:24.9]} 11. Qf3
{[%clk 0:02:48.7]} 11... c6 {[%clk 0:02:19.8]} 12. Bf4 {[%clk 0:02:40.3]} 12...
Re8 {[%clk 0:02:18.5]} 13. a3 {[%clk 0:02:31.9]} 13... Bd6 {[%clk 0:02:11.6]}
14. Rad1 {[%clk 0:02:28.4]} 14... Bb7 {[%clk 0:01:56.4]} 15. Bf5 {[%clk
0:02:15.7]} 15... Qc7 {[%clk 0:01:44.7]} 16. Bxd6 {[%clk 0:02:06.8]} 16... Qxd6
{[%clk 0:01:45.6]} 17. Na4 {[%clk 0:02:05.8]} 17... Re5 {[%clk 0:01:13]} 18. b4
{[%clk 0:01:56.2]} 18... Ba6 {[%clk 0:00:58.1]} 19. Rfe1 {[%clk 0:01:53.1]}
19... Rae8 {[%clk 0:00:57.6]} 20. Rxe5 {[%clk 0:01:50.8]} 20... Qxe5 {[%clk
0:00:46.6]} 21. Bd3 {[%clk 0:01:47.8]} 21... Bxd3 {[%clk 0:00:41.1]} 22. cxd3
{[%clk 0:01:44.9]} 22... Qd4 {[%clk 0:00:24.3]} 23. Rc1 {[%clk 0:01:32.7]} 23...
a5 {[%clk 0:00:23.6]} 24. Rxc6 {[%clk 0:01:23.5]} 24... axb4 {[%clk 0:00:21.3]}
25. Qd1 {[%clk 0:01:10.4]} 25... bxa3 {[%clk 0:00:19.4]} 26. Nc3 {[%clk
0:01:04.6]} 26... Ra8 {[%clk 0:00:18.9]} 27. Na2 {[%clk 0:00:59.8]} 27... Rb8
{[%clk 0:00:17.4]} 28. Nc1 {[%clk 0:00:33.5]} 28... Rb1 {[%clk 0:00:13.8]} 29.
Rc2 {[%clk 0:00:26.5]} 29... Qa1 {[%clk 0:00:11.9]} 30. Kh2 {[%clk 0:00:24.1]}
30... a2 {[%clk 0:00:11.1]} 31. Qd2 {[%clk 0:00:16.2]} 31... Qe5+ {[%clk
0:00:10.9]} 32. f4 {[%clk 0:00:16.1]} 32... a1=Q {[%clk 0:00:08.5]} 33. fxe5
{[%clk 0:00:15.6]} 33... Qxe5+ {[%clk 0:00:09.4]} 34. g3 {[%clk 0:00:15.4]}
34... Nh5 {[%clk 0:00:09]} 35. Ne2 {[%clk 0:00:14.1]} 35... Rb6 {[%clk
0:00:06.4]} 36. d4 {[%clk 0:00:13.4]} 36... Qb8 {[%clk 0:00:06.7]} 37. Nf4
{[%clk 0:00:11.5]} 37... Nxf4 {[%clk 0:00:06.7]} 38. Qxf4 {[%clk 0:00:11]} 38...
Qxf4 {[%clk 0:00:07.2]} 39. gxf4 {[%clk 0:00:11]} 39... g6 {[%clk 0:00:06.3]}
40. Kg3 {[%clk 0:00:10.7]} 40... Kg7 {[%clk 0:00:06]} 41. Rc5 {[%clk 0:00:09.5]}
41... Rd6 {[%clk 0:00:05.9]} 42. Kf3 {[%clk 0:00:09.3]} 42... Kf6 {[%clk
0:00:06.4]} 43. Kg4 {[%clk 0:00:08.6]} 43... h5+ {[%clk 0:00:06.3]} 44. Kg3
{[%clk 0:00:08.6]} 44... Kf5 {[%clk 0:00:07.2]} 45. Kf3 {[%clk 0:00:08.6]} 45...
f6 {[%clk 0:00:07.6]} 46. Rb5 {[%clk 0:00:08]} 46... g5 {[%clk 0:00:08]} 47.
fxg5 {[%clk 0:00:07.9]} 47... fxg5 {[%clk 0:00:08.9]} 48. Rc5 {[%clk 0:00:07.3]}
48... g4+ {[%clk 0:00:08.9]} 49. hxg4+ {[%clk 0:00:07.2]} 49... hxg4+ {[%clk
0:00:09.8]} 50. Ke3 {[%clk 0:00:07.1]} 50... g3 {[%clk 0:00:09.8]} 51. Kf3
{[%clk 0:00:07]} 51... g2 {[%clk 0:00:09.7]} 52. Kxg2 {[%clk 0:00:06.9]} 52...
Ke4 {[%clk 0:00:10.6]} 53. Kf2 {[%clk 0:00:06.7]} 53... Kxd4 {[%clk 0:00:11.5]}
54. Rc1 {[%clk 0:00:06.1]} 54... Re6 {[%clk 0:00:12.1]} 55. Rd1+ {[%clk
0:00:05.5]} 55... Kc4 {[%clk 0:00:12]} 56. Rc1+ {[%clk 0:00:04.9]} 56... Kb3
{[%clk 0:00:11.3]} 57. Rc8 {[%clk 0:00:03.5]} 57... d4 {[%clk 0:00:10.5]} 58.
Rd8 {[%clk 0:00:03.2]} 58... Kc3 {[%clk 0:00:10.2]} 59. Rc8+ {[%clk 0:00:03.3]}
59... Kd2 {[%clk 0:00:10.7]} 60. Rd8 {[%clk 0:00:03.3]} 60... d3 {[%clk
0:00:11.2]} 61. Kf3 {[%clk 0:00:03.6]} 61... Kc2 {[%clk 0:00:10.8]} 62. Rc8+
{[%clk 0:00:02.3]} 62... Kd1 {[%clk 0:00:11]} 63. Rd8 {[%clk 0:00:02.5]} 63...
d2 {[%clk 0:00:10.7]} 64. Kf2 {[%clk 0:00:03.4]} 64... Rf6+ {[%clk 0:00:10.8]}
65. Ke3 {[%clk 0:00:03.1]} 65... Re6+ {[%clk 0:00:10.6]} 66. Kf2 {[%clk
0:00:03.1]} 66... Re2+ {[%clk 0:00:10.2]} 67. Kf3 {[%clk 0:00:02.9]} 67... Ke1
{[%clk 0:00:09.8]} 0-1

[Event "Early-Titled-Tuesday-Blitz-September-05-2023"]
[Site "Chess.com"]
[Date "2023.09.05"]
[Round "9"]
[White "Gareth-Bale11"]
[Black "bescmelasti"]
[Result "1/2-1/2"]
[WhiteElo "2775"]
[BlackElo "2615"]
[TimeControl "180+1"]
[EndTime "9:44:10 PDT"]
[Termination "Game drawn - insufficient material"]

1. d4 {[%clk 0:03:00.9]} 1... Nf6 {[%clk 0:02:59.1]} 2. Nf3 {[%clk 0:03:01.1]}
2... e6 {[%clk 0:02:59]} 3. Bf4 {[%clk 0:03:01.5]} 3... d5 {[%clk 0:02:58.9]} 4.
e3 {[%clk 0:03:01.6]} 4... Bd6 {[%clk 0:02:59.6]} 5. Nbd2 {[%clk 0:03:00.8]}
5... O-O {[%clk 0:02:57.5]} 6. Bd3 {[%clk 0:02:57.8]} 6... c5 {[%clk 0:02:56.8]}
7. c3 {[%clk 0:02:57.9]} 7... Bxf4 {[%clk 0:02:48.1]} 8. exf4 {[%clk 0:02:57.6]}
8... b6 {[%clk 0:02:49]} 9. h4 {[%clk 0:02:57.3]} 9... Ba6 {[%clk 0:02:48]} 10.
Bxa6 {[%clk 0:02:55]} 10... Nxa6 {[%clk 0:02:47.8]} 11. Qe2 {[%clk 0:02:51.8]}
11... Nb8 {[%clk 0:02:43]} 12. Ne5 {[%clk 0:02:48.5]} 12... Qc7 {[%clk
0:02:36.9]} 13. h5 {[%clk 0:02:37.6]} 13... Nc6 {[%clk 0:02:32.9]} 14. Nxc6
{[%clk 0:02:34.7]} 14... Qxc6 {[%clk 0:02:33.1]} 15. h6 {[%clk 0:02:34.7]} 15...
g6 {[%clk 0:02:33]} 16. Qe5 {[%clk 0:02:17.8]} 16... Ne8 {[%clk 0:02:32.3]} 17.
Nf3 {[%clk 0:02:09.5]} 17... f6 {[%clk 0:02:30.9]} 18. Qe2 {[%clk 0:02:06.9]}
18... Qd7 {[%clk 0:02:11]} 19. O-O {[%clk 0:02:05.6]} 19... Nd6 {[%clk
0:02:10.9]} 20. Rfe1 {[%clk 0:01:45.4]} 20... Rae8 {[%clk 0:02:10.3]} 21. Rad1
{[%clk 0:01:33.9]} 21... c4 {[%clk 0:02:02.1]} 22. b3 {[%clk 0:01:22.3]} 22...
b5 {[%clk 0:01:59.7]} 23. bxc4 {[%clk 0:01:03.5]} 23... bxc4 {[%clk 0:02:00.6]}
24. Rb1 {[%clk 0:01:02.4]} 24... Nf5 {[%clk 0:01:57.5]} 25. Rb4 {[%clk
0:01:01.6]} 25... Nxh6 {[%clk 0:01:55.3]} 26. Reb1 {[%clk 0:01:01.5]} 26... Rf7
{[%clk 0:01:52.5]} 27. Nh4 {[%clk 0:00:51.5]} 27... Kh8 {[%clk 0:01:24]} 28. g3
{[%clk 0:00:41.5]} 28... Ng8 {[%clk 0:01:11.8]} 29. Kg2 {[%clk 0:00:40.6]} 29...
Kg7 {[%clk 0:01:11.4]} 30. Qg4 {[%clk 0:00:28.4]} 30... Nh6 {[%clk 0:01:04.5]}
31. Qh3 {[%clk 0:00:28.3]} 31... g5 {[%clk 0:00:57.7]} 32. Rh1 {[%clk
0:00:21.3]} 32... gxh4 {[%clk 0:00:41.9]} 33. Qxh4 {[%clk 0:00:22.2]} 33... Ng8
{[%clk 0:00:36.7]} 34. Qxh7+ {[%clk 0:00:21.1]} 34... Kf8 {[%clk 0:00:37.3]} 35.
Qh5 {[%clk 0:00:20]} 35... Qc7 {[%clk 0:00:30.3]} 36. f5 {[%clk 0:00:19]} 36...
e5 {[%clk 0:00:23]} 37. dxe5 {[%clk 0:00:16]} 37... fxe5 {[%clk 0:00:22.9]} 38.
Qf3 {[%clk 0:00:13.7]} 38... Qd7 {[%clk 0:00:19.8]} 39. g4 {[%clk 0:00:13.5]}
39... a5 {[%clk 0:00:18.8]} 40. Rbb1 {[%clk 0:00:13.2]} 40... e4 {[%clk
0:00:17.7]} 41. Qg3 {[%clk 0:00:13.1]} 41... d4 {[%clk 0:00:16.8]} 42. cxd4
{[%clk 0:00:13]} 42... Qxd4 {[%clk 0:00:17.7]} 43. Rbd1 {[%clk 0:00:12.9]} 43...
Qe5 {[%clk 0:00:17.2]} 44. Rc1 {[%clk 0:00:12.3]} 44... Qxg3+ {[%clk 0:00:15.9]}
45. Kxg3 {[%clk 0:00:13.2]} 45... Rc8 {[%clk 0:00:15.9]} 46. Kf4 {[%clk
0:00:13.1]} 46... Nf6 {[%clk 0:00:15.3]} 47. g5 {[%clk 0:00:13.7]} 47... Nd5+
{[%clk 0:00:15.8]} 48. Ke5 {[%clk 0:00:14]} 48... Re8+ {[%clk 0:00:07.7]} 49.
Kxd5 {[%clk 0:00:12.4]} 49... Rxf5+ {[%clk 0:00:08.1]} 50. Kxc4 {[%clk
0:00:12.1]} 50... Rxg5 {[%clk 0:00:07]} 51. Rh8+ {[%clk 0:00:11.7]} 51... Ke7
{[%clk 0:00:07.4]} 52. Rxe8+ {[%clk 0:00:12]} 52... Kxe8 {[%clk 0:00:08.3]} 53.
Kd4 {[%clk 0:00:12.5]} 53... Rf5 {[%clk 0:00:08.4]} 54. Rc2 {[%clk 0:00:11.2]}
54... Rf4 {[%clk 0:00:06.6]} 55. Ke3 {[%clk 0:00:11.2]} 55... Rh4 {[%clk
0:00:05.6]} 56. Rc5 {[%clk 0:00:09.9]} 56... Rh3+ {[%clk 0:00:05.9]} 57. Kxe4
{[%clk 0:00:09.8]} 57... Ra3 {[%clk 0:00:06.8]} 58. Rc2 {[%clk 0:00:09.9]} 58...
Kf7 {[%clk 0:00:07.5]} 59. f4 {[%clk 0:00:06.5]} 59... Kf6 {[%clk 0:00:08.2]}
60. Rb2 {[%clk 0:00:06.9]} 60... Ke6 {[%clk 0:00:08.4]} 61. f5+ {[%clk
0:00:06.1]} 61... Kf6 {[%clk 0:00:08.7]} 62. Rb6+ {[%clk 0:00:06.4]} 62... Kf7
{[%clk 0:00:08.8]} 63. Ke5 {[%clk 0:00:06.3]} 63... Rxa2 {[%clk 0:00:08.9]} 64.
Rb7+ {[%clk 0:00:06.5]} 64... Ke8 {[%clk 0:00:07.7]} 65. Kf6 {[%clk 0:00:06.9]}
65... Rg2 {[%clk 0:00:04.7]} 66. Ke6 {[%clk 0:00:05.7]} 66... Re2+ {[%clk
0:00:03.8]} 67. Kf6 {[%clk 0:00:06.2]} 67... a4 {[%clk 0:00:04.5]} 68. Ra7
{[%clk 0:00:06.2]} 68... Re4 {[%clk 0:00:03.9]} 69. Ra8+ {[%clk 0:00:05.6]}
69... Kd7 {[%clk 0:00:04.3]} 70. Kf7 {[%clk 0:00:06.3]} 70... Kc6 {[%clk
0:00:02.7]} 71. f6 {[%clk 0:00:06.3]} 71... Kb5 {[%clk 0:00:03.2]} 72. Rb8+
{[%clk 0:00:06.4]} 72... Kc4 {[%clk 0:00:03.3]} 73. Kg7 {[%clk 0:00:06.9]} 73...
Rg4+ {[%clk 0:00:03.5]} 74. Kf8 {[%clk 0:00:06.9]} 74... Rf4 {[%clk 0:00:03.5]}
75. Rc8+ {[%clk 0:00:07]} 75... Kb3 {[%clk 0:00:03.6]} 76. f7 {[%clk 0:00:07.6]}
76... a3 {[%clk 0:00:03.7]} 77. Rb8+ {[%clk 0:00:08]} 77... Kc2 {[%clk
0:00:03.8]} 78. Ra8 {[%clk 0:00:08.9]} 78... Kb2 {[%clk 0:00:04]} 79. Ke7 {[%clk
0:00:09.1]} 79... Rxf7+ {[%clk 0:00:04.2]} 80. Kxf7 {[%clk 0:00:09.2]} 80... a2
{[%clk 0:00:05.1]} 81. Rb8+ {[%clk 0:00:09.7]} 81... Kc2 {[%clk 0:00:05.6]} 82.
Ra8 {[%clk 0:00:10.6]} 82... Kb2 {[%clk 0:00:06.5]} 83. Rxa2+ {[%clk 0:00:10.7]}
83... Kxa2 {[%clk 0:00:06.7]} 1/2-1/2

[Event "Early-Titled-Tuesday-Blitz-September-05-2023"]
[Site "Chess.com"]
[Date "2023.09.05"]
[Round "9"]
[White "Good_Knight_Kiss"]
[Black "topin8"]
[Result "0-1"]
[WhiteElo "2339"]
[BlackElo "2455"]
[TimeControl "180+1"]
[EndTime "9:44:24 PDT"]
[Termination "topin8 won on time"]

1. e4 {[%clk 0:03:00.9]} 1... e5 {[%clk 0:02:58.7]} 2. Nf3 {[%clk 0:03:00.6]}
2... Nc6 {[%clk 0:02:59.1]} 3. Bb5 {[%clk 0:03:00.4]} 3... Nf6 {[%clk
0:02:59.2]} 4. d3 {[%clk 0:03:00.4]} 4... d6 {[%clk 0:02:58.8]} 5. c3 {[%clk
0:03:00.3]} 5... Be7 {[%clk 0:02:59.3]} 6. O-O {[%clk 0:03:00.4]} 6... O-O
{[%clk 0:02:59.9]} 7. Re1 {[%clk 0:03:00.8]} 7... a6 {[%clk 0:03:00.2]} 8. Ba4
{[%clk 0:03:00.6]} 8... b5 {[%clk 0:03:00.8]} 9. Bb3 {[%clk 0:03:01.1]} 9... Na5
{[%clk 0:03:01.1]} 10. Bc2 {[%clk 0:03:01.6]} 10... c5 {[%clk 0:03:01.7]} 11.
Nbd2 {[%clk 0:03:01.8]} 11... Nc6 {[%clk 0:02:58]} 12. Nf1 {[%clk 0:02:59.6]}
12... Re8 {[%clk 0:02:58.4]} 13. Ng3 {[%clk 0:02:58.8]} 13... Bf8 {[%clk
0:02:58.5]} 14. h3 {[%clk 0:02:57.2]} 14... Be6 {[%clk 0:02:54.5]} 15. d4 {[%clk
0:02:54.9]} 15... cxd4 {[%clk 0:02:53.8]} 16. cxd4 {[%clk 0:02:55.8]} 16... exd4
{[%clk 0:02:52.7]} 17. Nxd4 {[%clk 0:02:54.9]} 17... Nxd4 {[%clk 0:02:52.7]} 18.
Qxd4 {[%clk 0:02:55.7]} 18... Rc8 {[%clk 0:02:53.2]} 19. Bb3 {[%clk 0:02:45.8]}
19... Nd7 {[%clk 0:02:50.3]} 20. Bf4 {[%clk 0:02:10.3]} 20... Ne5 {[%clk
0:02:38.4]} 21. Bxe6 {[%clk 0:02:01.6]} 21... Rxe6 {[%clk 0:02:36.2]} 22. Rac1
{[%clk 0:01:56.5]} 22... Ng6 {[%clk 0:01:39.5]} 23. Be3 {[%clk 0:01:49.8]} 23...
Re8 {[%clk 0:01:22.7]} 24. Rxc8 {[%clk 0:01:37.8]} 24... Qxc8 {[%clk 0:01:23.6]}
25. Rc1 {[%clk 0:01:37.4]} 25... Qb7 {[%clk 0:01:22.4]} 26. Qb6 {[%clk
0:01:30.7]} 26... Qxb6 {[%clk 0:01:12.4]} 27. Bxb6 {[%clk 0:01:31.6]} 27... Ne5
{[%clk 0:01:13]} 28. Bd4 {[%clk 0:01:03.6]} 28... Nd3 {[%clk 0:00:11.7]} 29. Rc6
{[%clk 0:01:00]} 29... a5 {[%clk 0:00:12.1]} 30. a3 {[%clk 0:00:42]} 30... b4
{[%clk 0:00:11.6]} 31. Ra6 {[%clk 0:00:34.3]} 31... Nc5 {[%clk 0:00:03]} 32.
Bxc5 {[%clk 0:00:29.1]} 32... dxc5 {[%clk 0:00:03.9]} 33. Rxa5 {[%clk
0:00:28.8]} 33... bxa3 {[%clk 0:00:04.2]} 34. Rxa3 {[%clk 0:00:15.4]} 34... g6
{[%clk 0:00:05.1]} 35. Rc3 {[%clk 0:00:11.1]} 35... Rb8 {[%clk 0:00:04.8]} 36.
b3 {[%clk 0:00:07.5]} 36... Rb5 {[%clk 0:00:05.3]} 37. Kf1 {[%clk 0:00:07.5]}
37... Bg7 {[%clk 0:00:05.8]} 38. Rd3 {[%clk 0:00:06.2]} 38... Be5 {[%clk
0:00:06.3]} 39. Ke2 {[%clk 0:00:05.9]} 39... Kg7 {[%clk 0:00:05.9]} 40. Nf1
{[%clk 0:00:05.7]} 40... Ra5 {[%clk 0:00:05.9]} 41. Ne3 {[%clk 0:00:04.7]} 41...
Bd4 {[%clk 0:00:05.4]} 42. Nc4 {[%clk 0:00:04.5]} 42... Ra2+ {[%clk 0:00:05.7]}
43. Rd2 {[%clk 0:00:04.8]} 43... Ra1 {[%clk 0:00:05.8]} 44. Kd3 {[%clk 0:00:04]}
44... Rb1 {[%clk 0:00:05.9]} 45. Kc2 {[%clk 0:00:03.6]} 45... Rf1 {[%clk
0:00:06.1]} 46. f3 {[%clk 0:00:03.9]} 46... f5 {[%clk 0:00:04.3]} 47. exf5
{[%clk 0:00:03.5]} 47... gxf5 {[%clk 0:00:04.4]} 48. b4 {[%clk 0:00:04.1]} 48...
Kf6 {[%clk 0:00:01.9]} 49. bxc5 {[%clk 0:00:02.2]} 49... Bxc5 {[%clk 0:00:02]}
50. Nb2 {[%clk 0:00:02.6]} 50... Be7 {[%clk 0:00:01.3]} 51. Nd3 {[%clk 0:00:03]}
51... Ra1 {[%clk 0:00:01.5]} 52. Rd1 {[%clk 0:00:02.5]} 52... Ra2+ {[%clk
0:00:01.1]} 53. Nb2 {[%clk 0:00:02.9]} 53... Ra6 {[%clk 0:00:01.5]} 54. Kd3
{[%clk 0:00:02.5]} 54... Kg6 {[%clk 0:00:02]} 55. Ke2 {[%clk 0:00:02.3]} 55...
Bf6 {[%clk 0:00:02.5]} 56. Nd3 {[%clk 0:00:02.6]} 56... Ra2+ {[%clk 0:00:02.9]}
57. Rd2 {[%clk 0:00:03.2]} 57... Ra4 {[%clk 0:00:03.5]} 58. g4 {[%clk
0:00:03.1]} 58... fxg4 {[%clk 0:00:03.5]} 59. hxg4 {[%clk 0:00:03.4]} 59... h5
{[%clk 0:00:04.3]} 60. gxh5+ {[%clk 0:00:01.8]} 60... Kxh5 {[%clk 0:00:05.2]}
61. Rd1 {[%clk 0:00:02.1]} 61... Bg5 {[%clk 0:00:05.3]} 62. Rh1+ {[%clk
0:00:02.1]} 62... Kg6 {[%clk 0:00:05.1]} 63. Rg1 {[%clk 0:00:02.4]} 63... Ra2+
{[%clk 0:00:04.9]} 64. Kf1 {[%clk 0:00:02.5]} 64... Kf5 {[%clk 0:00:03.4]} 65.
Rg4 {[%clk 0:00:02.3]} 65... Ra1+ {[%clk 0:00:03.4]} 66. Ke2 {[%clk 0:00:02.4]}
66... Ra2+ {[%clk 0:00:03.9]} 67. Ke1 {[%clk 0:00:02.6]} 67... Ra1+ {[%clk
0:00:04.4]} 68. Ke2 {[%clk 0:00:02.8]} 68... Ra2+ {[%clk 0:00:05]} 69. Kf1
{[%clk 0:00:03]} 69... Ra1+ {[%clk 0:00:05.2]} 70. Kg2 {[%clk 0:00:03]} 70...
Ra2+ {[%clk 0:00:05.8]} 71. Nf2 {[%clk 0:00:03.1]} 71... Be3 {[%clk 0:00:05.8]}
72. Rg8 {[%clk 0:00:02.4]} 72... Rxf2+ {[%clk 0:00:05.3]} 73. Kg3 {[%clk
0:00:02.6]} 73... Ra2 {[%clk 0:00:05.1]} 74. Rf8+ {[%clk 0:00:02.7]} 74... Kg6
{[%clk 0:00:05.4]} 75. Re8 {[%clk 0:00:02.6]} 75... Bg5 {[%clk 0:00:05.5]} 76.
f4 {[%clk 0:00:02]} 76... Ra3+ {[%clk 0:00:05.6]} 77. Kg4 {[%clk 0:00:02.4]}
77... Bf6 {[%clk 0:00:06]} 78. Re6 {[%clk 0:00:02.3]} 78... Kf7 {[%clk
0:00:06.2]} 79. Rc6 {[%clk 0:00:02.5]} 79... Ra4 {[%clk 0:00:06.5]} 80. Kf5
{[%clk 0:00:02.8]} 80... Ra5+ {[%clk 0:00:06.3]} 81. Kg4 {[%clk 0:00:03.1]}
81... Kg6 {[%clk 0:00:06.4]} 82. Rb6 {[%clk 0:00:03]} 82... Rc5 {[%clk
0:00:06.6]} 83. Ra6 {[%clk 0:00:03.2]} 83... Rc1 {[%clk 0:00:06.5]} 84. Rc6
{[%clk 0:00:02.7]} 84... Rxc6 {[%clk 0:00:05.7]} 0-1

[Event "Early-Titled-Tuesday-Blitz-September-05-2023"]
[Site "Chess.com"]
[Date "2023.09.05"]
[Round "9"]
[White "Vanina1989"]
[Black "CrushingKings"]
[Result "1-0"]
[WhiteElo "2721"]
[BlackElo "2558"]
[TimeControl "180+1"]
[EndTime "9:44:26 PDT"]
[Termination "Vanina1989 won by checkmate"]

1. d4 {[%clk 0:03:00.9]} 1... g6 {[%clk 0:02:48.7]} 2. c4 {[%clk 0:03:00.8]}
2... Bg7 {[%clk 0:02:49.3]} 3. Nc3 {[%clk 0:03:01.3]} 3... Nf6 {[%clk
0:02:49.5]} 4. e4 {[%clk 0:03:01]} 4... d6 {[%clk 0:02:50]} 5. Nf3 {[%clk
0:03:01.2]} 5... O-O {[%clk 0:02:50.4]} 6. Be2 {[%clk 0:03:01.7]} 6... e5 {[%clk
0:02:51.1]} 7. Be3 {[%clk 0:03:01.9]} 7... Nc6 {[%clk 0:02:51.5]} 8. O-O {[%clk
0:02:59.4]} 8... exd4 {[%clk 0:02:50.7]} 9. Nxd4 {[%clk 0:02:59.4]} 9... Re8
{[%clk 0:02:51.5]} 10. f3 {[%clk 0:02:52.1]} 10... Nxd4 {[%clk 0:02:51.5]} 11.
Bxd4 {[%clk 0:02:51.9]} 11... Nd7 {[%clk 0:02:51.3]} 12. Bxg7 {[%clk 0:02:49]}
12... Kxg7 {[%clk 0:02:52.2]} 13. Qd4+ {[%clk 0:02:48.9]} 13... Qf6 {[%clk
0:02:52]} 14. Rfd1 {[%clk 0:02:47.3]} 14... Qxd4+ {[%clk 0:02:48.6]} 15. Rxd4
{[%clk 0:02:46.9]} 15... Nc5 {[%clk 0:02:45.1]} 16. Rd2 {[%clk 0:02:36.1]} 16...
Ne6 {[%clk 0:02:43]} 17. g3 {[%clk 0:02:33.1]} 17... Bd7 {[%clk 0:02:40.9]} 18.
Rf1 {[%clk 0:02:12.5]} 18... Bc6 {[%clk 0:02:40.3]} 19. Nd5 {[%clk 0:02:06.8]}
19... a5 {[%clk 0:02:34.4]} 20. Nc3 {[%clk 0:01:41.2]} 20... Nc5 {[%clk
0:02:33]} 21. Kf2 {[%clk 0:01:39.6]} 21... Re7 {[%clk 0:02:31.4]} 22. h4 {[%clk
0:01:38.5]} 22... h5 {[%clk 0:02:28.5]} 23. Rg1 {[%clk 0:01:31.3]} 23... Rf8
{[%clk 0:02:21.7]} 24. Bd3 {[%clk 0:01:08.3]} 24... f5 {[%clk 0:02:18.1]} 25.
exf5 {[%clk 0:01:08.2]} 25... Nxd3+ {[%clk 0:02:18]} 26. Rxd3 {[%clk 0:01:08.8]}
26... Rxf5 {[%clk 0:02:18.7]} 27. f4 {[%clk 0:01:09.4]} 27... a4 {[%clk
0:01:13.3]} 28. Re1 {[%clk 0:01:06.5]} 28... Rxe1 {[%clk 0:01:07.5]} 29. Kxe1
{[%clk 0:01:06.5]} 29... Rc5 {[%clk 0:01:07.4]} 30. Rd4 {[%clk 0:01:07]} 30...
Kf6 {[%clk 0:01:04.9]} 31. Ke2 {[%clk 0:00:55.2]} 31... Kf5 {[%clk 0:01:04.8]}
32. Nd1 {[%clk 0:00:51.4]} 32... Kg4 {[%clk 0:00:54.2]} 33. Kf2 {[%clk
0:00:51.2]} 33... b5 {[%clk 0:00:44.7]} 34. cxb5 {[%clk 0:00:49.3]} 34... Rc2+
{[%clk 0:00:43.1]} 35. Ke1 {[%clk 0:00:47.4]} 35... Kxg3 {[%clk 0:00:21.8]} 36.
bxc6 {[%clk 0:00:46.7]} 36... Kxh4 {[%clk 0:00:19.2]} 37. f5+ {[%clk 0:00:44.6]}
37... Kg5 {[%clk 0:00:19.1]} 38. fxg6 {[%clk 0:00:45]} 38... Kxg6 {[%clk
0:00:19.6]} 39. Rxa4 {[%clk 0:00:44.8]} 39... Kg5 {[%clk 0:00:19.8]} 40. Re4
{[%clk 0:00:40.2]} 40... h4 {[%clk 0:00:19.7]} 41. Re2 {[%clk 0:00:38.6]} 41...
Rxc6 {[%clk 0:00:18.8]} 42. Kf2 {[%clk 0:00:38.5]} 42... Rc1 {[%clk 0:00:18.9]}
43. Ne3 {[%clk 0:00:38]} 43... h3 {[%clk 0:00:19.5]} 44. Kg3 {[%clk 0:00:37]}
44... Ra1 {[%clk 0:00:14.9]} 45. a3 {[%clk 0:00:36.6]} 45... c6 {[%clk
0:00:12.2]} 46. Kxh3 {[%clk 0:00:36.2]} 46... Kf4 {[%clk 0:00:12.2]} 47. Nc2
{[%clk 0:00:31.1]} 47... d5 {[%clk 0:00:10.2]} 48. Kg2 {[%clk 0:00:27.8]} 48...
c5 {[%clk 0:00:09.7]} 49. Ne3 {[%clk 0:00:28]} 49... d4 {[%clk 0:00:07.6]} 50.
Nd5+ {[%clk 0:00:27.1]} 50... Kf5 {[%clk 0:00:07.4]} 51. Ne7+ {[%clk 0:00:24.5]}
51... Kf4 {[%clk 0:00:06.8]} 52. Nd5+ {[%clk 0:00:24.3]} 52... Kf5 {[%clk
0:00:07]} 53. Rc2 {[%clk 0:00:21.6]} 53... d3 {[%clk 0:00:04.3]} 54. Rf2+ {[%clk
0:00:20.3]} 54... Ke4 {[%clk 0:00:04.6]} 55. Nc3+ {[%clk 0:00:20.5]} 55... Ke3
{[%clk 0:00:02.7]} 56. Nd5+ {[%clk 0:00:17.9]} 56... Kd4 {[%clk 0:00:02.9]} 57.
Nc3 {[%clk 0:00:16.3]} 57... Ke3 {[%clk 0:00:03.5]} 58. Rf8 {[%clk 0:00:15.8]}
58... Kd2 {[%clk 0:00:01.7]} 59. Rc8 {[%clk 0:00:14.9]} 59... Kc2 {[%clk
0:00:01.3]} 60. Rxc5 {[%clk 0:00:14.5]} 60... Kxb2 {[%clk 0:00:02]} 61. a4
{[%clk 0:00:14.4]} 61... Ra3 {[%clk 0:00:01.7]} 62. Nd1+ {[%clk 0:00:13.6]}
62... Kb1 {[%clk 0:00:01.8]} 63. a5 {[%clk 0:00:13.8]} 63... d2 {[%clk 0:00:02]}
64. Kf2 {[%clk 0:00:14.4]} 64... Ka2 {[%clk 0:00:01.8]} 65. Ke2 {[%clk
0:00:14.6]} 65... Kb3 {[%clk 0:00:02.3]} 66. Kxd2 {[%clk 0:00:13.5]} 66... Kb4
{[%clk 0:00:03]} 67. Re5 {[%clk 0:00:13.7]} 67... Rxa5 {[%clk 0:00:03.7]} 68.
Re4+ {[%clk 0:00:14.3]} 68... Kc5 {[%clk 0:00:03.8]} 69. Nc3 {[%clk 0:00:14.7]}
69... Kd6 {[%clk 0:00:04.1]} 70. Kd3 {[%clk 0:00:15]} 70... Re5 {[%clk
0:00:04.6]} 71. Ra4 {[%clk 0:00:15]} 71... Ke6 {[%clk 0:00:05.2]} 72. Kd4 {[%clk
0:00:15.1]} 72... Rg5 {[%clk 0:00:05.2]} 73. Ra6+ {[%clk 0:00:14.5]} 73... Kd7
{[%clk 0:00:05.9]} 74. Nd5 {[%clk 0:00:14.2]} 74... Rg1 {[%clk 0:00:06.6]} 75.
Nf6+ {[%clk 0:00:14.2]} 75... Kc7 {[%clk 0:00:06.6]} 76. Ne4 {[%clk 0:00:14.5]}
76... Rd1+ {[%clk 0:00:06]} 77. Ke5 {[%clk 0:00:15]} 77... Kb7 {[%clk 0:00:06]}
78. Rh6 {[%clk 0:00:14.4]} 78... Kc7 {[%clk 0:00:06.5]} 79. Rh7+ {[%clk
0:00:13.9]} 79... Kc6 {[%clk 0:00:06.6]} 80. Rh8 {[%clk 0:00:13.4]} 80... Kd7
{[%clk 0:00:06.6]} 81. Nf6+ {[%clk 0:00:13.1]} 81... Kc6 {[%clk 0:00:07.2]} 82.
Rc8+ {[%clk 0:00:12.6]} 82... Kb7 {[%clk 0:00:07.9]} 83. Rc2 {[%clk 0:00:12.3]}
83... Kb6 {[%clk 0:00:07.3]} 84. Nd5+ {[%clk 0:00:12]} 84... Kb5 {[%clk
0:00:07]} 85. Kd6 {[%clk 0:00:12.3]} 85... Rh1 {[%clk 0:00:07.6]} 86. Rc5+
{[%clk 0:00:11.7]} 86... Ka4 {[%clk 0:00:07.6]} 87. Rc3 {[%clk 0:00:11.2]} 87...
Rh4 {[%clk 0:00:06.7]} 88. Kc5 {[%clk 0:00:10.4]} 88... Rh8 {[%clk 0:00:07]} 89.
Nb6+ {[%clk 0:00:10.3]} 89... Ka5 {[%clk 0:00:07.5]} 90. Ra3# {[%clk 0:00:10.6]}
1-0